[Event "87th Spanish Championship 2022"]
[Site "Linares"]
[Date "2022.08.16"]
[Round "7.33"]
[White "Guerra Bastida, Diego"]
[Black "Alvarez Pampillon, Antonio"]
[Result "1/2-1/2"]
[ECO "A43"]
[WhiteElo "2242"]
[BlackElo "2019"]
[Annotator "TA"]
[PlyCount "179"]
[EventDate "2022.08.11"]
[EventType "swiss"]
[EventCountry "ESP"]
[SourceTitle "playchess.com"]
[Source "ChessBase"]
[SourceQuality "1"]
[TimeControl "5400+30"]

{[%evp 9,179,4,8,17,8,14,18,24,66,26,33,26,61,52,49,42,50,39,72,0,0,-65,-63,-106,-63,-64,-62,-64,-63,-63,0,0,262,262,259,253,266,258,268,181,215,191,181,129,147,133,140,75,75,93,96,101,90,68,68,62,47,0,98,5,5,0,112,0,14,0,6,0,0,0,0,0,14,0,0,0,65,54,125,83,96,0,0,0,0,0,6,0,0,0,0,0,0,0,0,0,0,0,0,0,0,0,0,0,58,0,51,0,0,0,0,0,0,0,0,0,0,0,0,0,0,0,0,0,0,0,0,0,0,0,0,0,0,0,0,0,0,0,0,0,0,0,0,0,0,0,50,6,16,0,0,0,0,0,0,0,75,0,75,0,26,0,0,0,49,0,0,0,49,0,0,0]} 1. d4 {[%emt 0:00:44]} c5 {[%emt 0:00:26]} 2. e3 {[%emt 0:01:14]} g6 {[%emt 0:01:55]} 3. Nf3 {[%emt 0:01:38]} Bg7 {[%emt 0:00:04]} 4. Be2 {[%emt 0:01:04]} Nf6 {[%emt 0:00:05]} 5. dxc5 {[%emt 0:02:07]} Na6 {[%emt 0:00:24]} 6. O-O {[%emt 0:02:29] A48: 1 d4 Nf6 2 Nf3 g6: Torre, London and Colle Systems.} Nxc5 {[%emt 0:00:28]} 7. c4 {[%emt 0:00:23] [#]} Nfe4 $146 {[%emt 0:08:30]} ({Predecessor:} 7... O-O 8. b4 Nce4 9. Bb2 d5 10. Nbd2 Bg4 11. h3 Nxd2 12. Nxd2 Bxe2 13. Qxe2 Qb6 {½-½ (21) Barbot,P (2438)-Yilmaz,M (2634) Paleochora 2022}) 8. Nd4 {[%emt 0:03:24]} a5 {[%emt 0:04:32]} 9. Na3 {[%emt 0:05:26]} f5 {[%emt 0:04:22]} 10. Nab5 {[%emt 0:04:29]} a4 {[%emt 0:12:00]} 11. Rb1 {[%emt 0:02:53]} d6 {[%emt 0:01:30]} 12. b4 {[%emt 0:05:13]} axb3 $1 {[%emt 0:01:01]} 13. axb3 {[%emt 0:00:07]} Bd7 {[%emt 0:00:58]} 14. b4 {[%emt 0:04:36]} (14. f3 $16) 14... Na4 $1 $11 {[%emt 0:09:41]} 15. Ra1 {[%emt 0:27:58]} (15. Rb3 $11) 15... Bxb5 $15 {[%emt 0:05:56]} 16. cxb5 {[%emt 0:02:22]} Nec3 {[%emt 0:00:46] Pair of Knights!} 17. Qc2 {[%emt 0:04:49]} Nxe2+ {[%emt 0:01:36]} 18. Qxe2 {[%emt 0:00:10]} Nc3 {[%emt 0:00:49][%csl LRa1,LRe2]} 19. Qc4 {[%emt 0:01:35]} Rxa1 {[%emt 0:19:20]} ({Black should play} 19... Rc8 $1 $15 20. Qd3 Qd7) 20. Ne6 $11 {[%emt 0:00:27]} Kd7 {[%emt 0:00:17][%mdl 8192]} 21. Nxd8 $18 {[%emt 0:06:36]} Rxd8 {[%emt 0:00:02]} 22. Bb2 {[%emt 0:02:56][%csl LRa1,LRc3] Dancing on a razor blade.} Rxf1+ {[%emt 0:00:36]} 23. Qxf1 {[%emt 0:01:04]} Rc8 {[%emt 0:01:05][%cal Oc3a2]} 24. g3 {[%emt 0:02:26]} d5 {[%emt 0:02:21]} 25. Qd3 {[%emt 0:01:13]} e6 {[%emt 0:00:31]} 26. Kg2 {[%emt 0:00:22]} (26. b6 $18) 26... Rc4 {[%emt 0:00:31]} 27. b6 {[%emt 0:01:59]} Kc6 {[%emt 0:02:06]} 28. Qc2 {[%emt 0:01:44]} (28. Bxc3 $142 Bxc3 29. Qc2) 28... Rxb4 $16 {[%emt 0:03:12]} 29. Bxc3 {[%emt 0:01:05]} Rc4 {[%emt 0:00:01] [#]} 30. Qa2 $1 {[%emt 0:00:23]} Bxc3 {[%emt 0:00:12][%mdl 4096] Endgame KQ-KRB} 31. Qa8 {[%emt 0:00:26]} Kxb6 {[%emt 0:01:13]} 32. Qd8+ {[%emt 0:00:18]} Rc7 {[%emt 0:00:21]} 33. h4 {[%emt 0:00:32]} (33. Qd6+ $14 Rc6 34. Qd7) 33... Be5 {[%emt 0:05:38]} (33... Kc6 $11) 34. Qg8 {[%emt 0:00:51]} (34. Qe8 $16 Rc6 35. Qe7) 34... Re7 $11 {[%emt 0:01:53]} 35. Qd8+ {[%emt 0:01:09]} (35. h5 $11) 35... Rc7 $16 {[%emt 0:00:01]} 36. Kh3 {[%emt 0:01:35]} (36. Qe8 $16 Rc6 37. Qe7) 36... Kc6 {[%emt 0:02:31]} 37. Qe8+ {[%emt 0:00:31][%mdl 1024] White has compensation.} Kd6 {[%emt 0:00:34]} 38. Qf8+ {[%emt 0:01:20]} Re7 {[%emt 0:03:06]} 39. Qb8+ {[%emt 0:00:57]} Rc7 {[%emt 0:00:15]} 40. Qf8+ {[%emt 0:01:04]} Kc6 {[%emt 0:01:22]} 41. f4 {[%emt 0:00:55]} Bd6 {[%emt 0:02:57]} 42. Qe8+ {[%emt 0:00:11]} Rd7 {[%emt 0:00:20]} ({Black should try} 42... Kc5 $11) 43. Qxe6 {[%emt 0:01:09]} b5 {[%emt 0:01:20] [#]} (43... Re7 $14 44. Qc8+ Bc7) 44. Qe8 $1 {[%emt 0:00:18]} b4 {[%emt 0:00:59]} 45. Qc8+ {[%emt 0:00:24]} (45. h5 $16) 45... Rc7 $11 {[%emt 0:00:15]} 46. Qa8+ {[%emt 0:00:37]} Rb7 {[%emt 0:01:24]} 47. Qc8+ {[%emt 0:00:31]} Rc7 {[%emt 0:02:23]} 48. Qa8+ {[%emt 0:00:27]} Rb7 {[%emt 0:01:30]} 49. Qa6+ {[%emt 0:01:53]} Kc7 {[%emt 0:00:37]} 50. Qa5+ {[%emt 0:00:29]} Kc6 {[%emt 0:00:33]} 51. Qa6+ {[%emt 0:01:20]} Kc7 {[%emt 0:00:02]} 52. Qa5+ {[%emt 0:01:00]} Rb6 {[%emt 0:00:28]} 53. Qa7+ {[%emt 0:01:39]} Kc6 {[%emt 0:00:23]} 54. Qa8+ {[%emt 0:00:08]} Kc5 {[%emt 0:00:23]} 55. Qa5+ {[%emt 0:00:18]} Rb5 {[%emt 0:00:34]} 56. Qa7+ {[%emt 0:00:15]} Kc4 {[%emt 0:00:50]} (56... Rb6 $11) 57. Qd4+ $14 {[%emt 0:00:56]} Kb3 {[%emt 0:00:02]} 58. Qf6 {[%emt 0:00:22]} (58. Qd1+ $14 Kc3 59. Qc1+ Kb3 60. Qc6) 58... Bc5 $11 {[%emt 0:01:15]} 59. Qa6 {[%emt 0:01:29]} Kc4 {[%emt 0:00:07] And now ...b3 would win.} 60. Qa4 {[%emt 0:00:24][%cal Ra4c2]} Bxe3 {[%emt 0:00:58]} 61. Qc2+ {[%emt 0:00:16]} Kd4 {[%emt 0:00:11] aiming for ...b3.} 62. Qd1+ {[%emt 0:00:17]} Kc5 {[%emt 0:00:38] Strongly threatening ...b3.} 63. Qc2+ {[%emt 0:01:12]} Kb6 {[%emt 0:00:31]} 64. Qd3 {[%emt 0:00:44]} d4 {[%emt 0:01:02]} 65. Qb3 {[%emt 0:00:24]} Kc6 {[%emt 0:00:33]} 66. Qc4+ {[%emt 0:00:53]} Kb6 {[%emt 0:00:09] Hoping for ...b3.} 67. Qb3 {[%emt 0:00:20]} Kc5 {[%emt 0:00:14]} 68. Qc2+ {[%emt 0:00:08]} Kd6 {[%emt 0:00:15]} 69. Qc4 {[%emt 0:00:32]} Rb6 {[%emt 0:00:15]} 70. Qg8 {[%emt 0:01:10]} b3 {[%emt 0:01:35] Threatens to win with ...Kc5.} 71. Qd8+ {[%emt 0:01:06]} Kc5 {[%emt 0:00:10] White must now prevent ...Rb4.} 72. Qc7+ {[%emt 0:00:13]} Kb5 {[%emt 0:00:51]} 73. Qd7+ {[%emt 0:00:14]} Kb4 {[%emt 0:00:21] ...Rb5 is the strong threat.} (73... Kc4 $5 74. Qc7+ Kb5 $11) 74. Qe7+ {[%emt 0:00:22]} Kb5 {[%emt 0:00:40]} (74... Kc4 $5 75. Qc7+ Kb5 $11) 75. Qd7+ {[%emt 0:00:26]} Rc6 {[%emt 0:00:02]} (75... Kb4 $5 76. Qe7+ Kc4 77. Qc7+ Kb5 $11) 76. Qd5+ {[%emt 0:00:39]} Rc5 $1 {[%emt 0:00:56]} 77. Qxb3+ {[%emt 0:00:07]} Kc6 {[%emt 0:00:25]} (77... Ka5 $1 $11) 78. Qg8 {[%emt 0:00:37]} Rd5 {[%emt 0:00:21]} 79. Qc8+ {[%emt 0:01:15]} Kd6 {[%emt 0:00:16]} 80. Qd8+ {[%emt 0:00:24]} Kc6 {[%emt 0:00:19]} 81. Qa8+ {[%emt 0:01:15]} Kd6 {[%emt 0:00:40]} 82. Qe8 {[%emt 0:00:40]} Rc5 {[%emt 0:00:49]} (82... Kc7 $11 {remains equal.}) 83. Qf8+ {[%emt 0:00:22]} ({Better is} 83. h5 $16) 83... Kc6 {[%emt 0:00:27] [#]} (83... Kd5 $11 {keeps the balance.}) 84. Qe7 {[%emt 0:00:23]} (84. h5 $1 $16) 84... Rd5 {[%emt 0:00:39]} 85. Qe6+ {[%emt 0:01:02]} Rd6 {[%emt 0:00:07]} 86. Qc4+ {[%emt 0:00:42]} Kb6 {[%emt 0:00:33]} (86... Kd7 $1 $11 {is superior.}) 87. Qb4+ {[%emt 0:00:18]} (87. Qd3 $1 $14 {deserves consideration.}) 87... Kc6 {[%emt 0:00:01]} (87... Kc7 $11 {was preferrable.}) 88. Qc4+ $14 {[%emt 0:00:21]} Kb6 {[%emt 0:00:01]} 89. Qb4+ {[%emt 0:00:47]} (89. Qd3 $14 {is more appropriate.}) 89... Kc6 $11 {[%emt 0:00:07]} 90. Qc4+ {[%emt 0:00:38] Black defended with fortune.  Weighted Error Value: White=0.20 (precise) /Black=0.22 (precise)} 1/2-1/2

[Event "87th Spanish Championship 2022"]
[Site "Linares"]
[Date "2022.08.16"]
[Round "7.34"]
[White "Yuste Valenzuela, Alejandro"]
[Black "Garcia Gimenez, Santiago"]
[Result "1-0"]
[ECO "C90"]
[WhiteElo "2022"]
[BlackElo "2193"]
[Annotator "TA"]
[PlyCount "121"]
[EventDate "2022.08.11"]
[EventType "swiss"]
[EventCountry "ESP"]
[SourceTitle "playchess.com"]
[Source "ChessBase"]
[SourceQuality "1"]
[TimeControl "5400+30"]

{[%evp 24,121,10,0,12,-7,0,-7,-2,0,0,-12,0,0,0,-30,0,0,0,0,0,0,0,0,0,-14,0,-12,-4,-35,-46,-46,-34,-70,-14,-18,-22,-16,0,0,0,0,89,108,29982,59,29,11,92,11,11,0,0,0,255,241,247,240,230,237,210,227,214,185,208,212,200,142,125,128,136,127,579,578,572,498,1009,906,12824,12822,4710,1488,1150,1520,2510,2479,1327,1114,12838,12839,12838,12839,12837,12837,12841,12838,12842,12839,12837,1592]} 1. e4 {[%emt 0:00:01]} e5 {[%emt 0:01:36]} 2. Nf3 {[%emt 0:00:06]} Nc6 {[%emt 0:00:13]} 3. Bb5 {[%emt 0:00:15]} a6 {[%emt 0:00:09]} 4. Ba4 {[%emt 0:00:04]} Nf6 {[%emt 0:00:05]} 5. O-O {[%emt 0:00:21]} Be7 {[%emt 0:00:05]} 6. Re1 {[%emt 0:00:23]} b5 {[%emt 0:00:05]} 7. Bb3 {[%emt 0:00:02]} d6 {[%emt 0:00:07]} 8. c3 {[%emt 0:00:15]} O-O {[%emt 0:00:08]} 9. d3 {[%emt 0:00:06]} Na5 {[%emt 0:01:38]} 10. Bc2 {[%emt 0:00:05]} c5 {[%emt 0:00:07]} 11. Nbd2 {[%emt 0:00:26][%cal Bb1d2,Bd2f1,Bf1e3][%mdl 32]} Re8 {[%emt 0:02:04]} 12. Nf1 {[%emt 0:01:19]} Bf8 {[%emt 0:00:45]} 13. Ne3 {[%emt 0:04:03]} g6 {[%emt 0:00:15] C90: Closed Ruy Lopez with 7...d6: Early deviations.} 14. a4 {[%emt 0:01:25]} Bb7 {[%emt 0:03:24]} 15. h3 {[%emt 0:01:57] [#]} Qd7 $146 {[%emt 0:03:42] The position is equal.} ({Predecessor:} 15... Bg7 16. Bd2 Nc6 17. Bb3 h6 18. Nd5 Na5 19. Nxf6+ Qxf6 20. axb5 axb5 21. Bc2 c4 {1-0 (47) Cloutier,M (2100)-Rousseau,D (2093) Montreal 2015}) 16. Bd2 {[%emt 0:07:18]} c4 {[%emt 0:05:09]} 17. axb5 {[%emt 0:06:04]} axb5 {[%emt 0:02:35]} 18. dxc4 {[%emt 0:04:08]} bxc4 {[%emt 0:00:07]} 19. Qe2 {[%emt 0:18:34]} Rec8 {[%emt 0:02:08]} (19... Nxe4 $2 20. Bxe4 Bxe4 21. Ng4 Bxf3 22. Nf6+ Kg7 23. Qxf3 $18 (23. Nxd7 Bxe2 24. Rxe2 Nb3 $17)) 20. Nh2 {[%emt 0:06:47]} h5 {[%emt 0:01:28] Inhibits Nhg4.} (20... Bxe4 $2 21. Neg4 Nxg4 22. Nxg4 $18 (22. Bxe4 Nxh2 23. Bxa8 Rxa8 $16)) (20... Nxe4 21. Bxe4 Bxe4 22. Neg4 $16) 21. f3 {[%emt 0:01:33]} d5 {[%emt 0:02:26]} 22. exd5 {[%emt 0:04:47]} Nxd5 {[%emt 0:00:10]} 23. Nxd5 {[%emt 0:02:00]} Qxd5 {[%emt 0:02:17]} 24. Kh1 {[%emt 0:02:13]} Bg7 {[%emt 0:01:17]} 25. Be3 {[%emt 0:01:13]} Qe6 {[%emt 0:07:16]} 26. Be4 {[%emt 0:04:38]} Bxe4 {[%emt 0:04:07]} 27. fxe4 {[%emt 0:00:05]} Qc6 {[%emt 0:01:33]} 28. Qf3 {[%emt 0:05:10]} Nb3 {[%emt 0:03:34]} (28... Nb7 $1 $15 29. Nf1 Nd6) 29. Rxa8 {[%emt 0:00:43]} Rxa8 {[%emt 0:01:00]} 30. Rf1 {[%emt 0:00:17]} Qb7 {[%emt 0:01:01]} 31. g4 {[%emt 0:00:43]} hxg4 {[%emt 0:02:17]} 32. Nxg4 {[%emt 0:00:08]} Rd8 {[%emt 0:04:40]} (32... Ra6 $11) 33. Nf6+ $1 $16 {[%emt 0:10:13]} Kh8 $2 {[%emt 0:05:15][%mdl 8192]} (33... Kf8 $16) 34. Bg5 $2 {[%emt 0:01:24]} (34. Qf2 {mates} Bxf6 35. Qxf6+ Kh7 36. Qh4+ Kg8 37. Qxd8+ Kh7 38. Qf8 Qxe4+ 39. Kh2) 34... Rd6 $1 $14 {[%emt 0:06:41]} (34... Nd2 35. Qg4 $1 Bxf6 36. Qh4+ Kg8 37. Bxf6 Qxe4+ 38. Qxe4 Nxe4 39. Bxd8 $18) 35. Qg4 {[%emt 0:08:52] Qh4+ would kill now.} Rxf6 {[%emt 0:00:10]} (35... Bxf6 $11 {keeps the balance.} 36. Qh4+ (36. Bxf6+ Rxf6 37. Qh4+ Kg8 $14) (36. Rxf6 Rd3 $11) 36... Kg8 37. Bxf6 Rxf6 38. Rxf6 (38. Qxf6 Qxe4+ 39. Kg1 Qd5 $14) 38... Nc5) 36. Qh4+ {[%emt 0:03:01]} ({Don't play} 36. Bxf6 $6 Bxf6 37. Rxf6 Nc5 $11) (36. Rxf6 $16 {aiming for Rd6.} Nc5 37. Rd6) 36... Kg8 $11 {[%emt 0:00:08]} 37. Rxf6 $40 {[%emt 0:00:16][%mdl 128] And now Rd6 would win. White is up to no good.} Nc5 {[%emt 0:00:07]} 38. Rd6 {[%emt 0:00:17] Intending Rd8+ and mate.} Qxe4+ $2 {[%emt 0:00:11][%mdl 8192]} (38... Ne6 $1 $11 {and Black has nothing to worry.}) 39. Qxe4 $18 {[%emt 0:00:17] Chess con chili.} Nxe4 $11 {[%emt 0:00:06][%mdl 4096] Endgame KRB-KBN} 40. Rd8+ {[%emt 0:00:02]} Kh7 {[%emt 0:00:07]} 41. Be3 {[%emt 0:00:32]} f5 {[%emt 0:00:07]} 42. Kg2 {[%emt 0:00:25] Rc8 is the strong threat.} f4 {[%emt 0:00:08]} 43. Bb6 {[%emt 0:00:31]} g5 {[%emt 0:01:09]} 44. Kf3 {[%emt 0:02:31]} Nf6 {[%emt 0:00:08]} 45. Bc7 {[%emt 0:00:42]} e4+ {[%emt 0:00:12] [#]} 46. Kf2 $1 {[%emt 0:00:16] White is more active.} Kg6 {[%emt 0:00:14]} 47. Be5 {[%emt 0:00:37] Strongly threatening Bxf6.} Kf5 {[%emt 0:00:08][%mdl 8192]} (47... g4 $16 {is tougher.}) 48. Bxf6 $18 {[%emt 0:00:13] White is clearly winning.} Bxf6 {[%emt 0:00:05] [#] KR-KB} 49. Rd5+ $1 {[%emt 0:00:25]} Be5 {[%emt 0:00:32]} (49... Ke6 $142 50. Rc5 Bd8 51. Rxc4 Bb6+ 52. Kf1 Kf5) 50. Rc5 {[%emt 0:00:05]} f3 {[%emt 0:00:45]} 51. Ke3 {[%emt 0:00:39]} Kf6 {[%emt 0:00:37]} 52. Rxc4 {[%emt 0:01:26]} Bf4+ {[%emt 0:00:19]} 53. Kf2 {[%emt 0:00:08]} Kf5 {[%emt 0:00:32]} 54. Rc5+ {[%emt 0:00:05]} Ke6 {[%emt 0:00:25]} 55. b4 {[%emt 0:02:14][%cal Bb2b4,Bb4b5][%mdl 32] Hoping for b5.} Kd6 {[%emt 0:01:35]} 56. c4 {[%emt 0:00:12]} Be5 {[%emt 0:01:19]} 57. Rd5+ {[%emt 0:00:02]} Ke6 {[%emt 0:00:07]} 58. Ke3 {[%emt 0:01:02]} Bc3 {[%emt 0:00:20]} 59. b5 {[%emt 0:00:43]} Ba5 {[%emt 0:00:07]} 60. Kxe4 {[%emt 0:00:39]} f2 {[%emt 0:00:11]} 61. Rf5 {[%emt 0:00:17] Weighted Error Value: White=0.27 (precise) /Black=0.59} 1-0

[Event "87th Spanish Championship 2022"]
[Site "Linares"]
[Date "2022.08.16"]
[Round "7.35"]
[White "Saenz Narciso, Miguel Angel"]
[Black "Romero Nieto, Hugo"]
[Result "1-0"]
[ECO "B07"]
[WhiteElo "2222"]
[BlackElo "1712"]
[Annotator "TA"]
[PlyCount "95"]
[EventDate "2022.08.11"]
[EventType "swiss"]
[EventCountry "ESP"]
[SourceTitle "playchess.com"]
[Source "ChessBase"]
[SourceQuality "1"]
[TimeControl "5400+30"]

{[%evp 9,95,-13,27,0,0,-6,0,-14,8,-27,0,-20,9,-35,-28,-28,-31,-46,-21,-16,0,-47,-48,-26,50,8,8,8,8,11,11,3,264,257,262,268,253,156,191,199,221,204,272,254,263,263,628,177,167,172,188,0,0,0,0,0,122,12,8,-167,131,112,212,171,188,114,377,273,729,721,1453,1412,1902,1918,1895,1866,1793,1759,1943,1841,2146,2033,4817,3526,2815,2514,1790,1761]} 1. d4 {[%emt 0:00:06]} Nf6 {[%emt 0:00:05][%cal Bg8f6,Bf6h5,Bh5g3][%mdl 32]} 2. Nc3 {[%emt 0:00:08]} d6 {[%emt 0:00:32]} 3. e4 {[%emt 0:03:06]} g6 {[%emt 0:00:24]} 4. Be2 {[%emt 0:03:50]} Bg7 {[%emt 0:00:30]} 5. g4 {[%emt 0:00:06]} h5 {[%emt 0:05:34][%cal Rh5g4]} (5... d5 $5 {[%cal Rf6e4]}) 6. gxh5 {[%emt 0:04:20] B07: Pirc Defence: Miscellaneous Systems.} Nxh5 {[%emt 0:00:39]} 7. Be3 {[%emt 0:00:14]} c6 {[%emt 0:02:49]} 8. Qd2 {[%emt 0:06:38] The position is equal.} Qa5 {[%emt 0:02:07]} 9. O-O-O {[%emt 0:01:51] [#]} b5 $146 {[%emt 0:02:39]} ({Predecessor:} 9... Nd7 10. Kb1 b5 11. Bd3 b4 12. Nce2 c5 13. Bc4 Nb6 14. Bd5 Nxd5 15. exd5 c4 16. Ng3 Nxg3 17. fxg3 Bb7 18. Qe2 Qxd5 {0-1 (18) Weber,R-Nilsen,K Bamberg 1973}) 10. a3 {[%emt 0:02:29]} a6 {[%emt 0:04:20]} 11. f4 {[%emt 0:04:01] [#]} Ng3 $1 {[%emt 0:04:25]} 12. hxg3 {[%emt 0:01:23]} Rxh1 {[%emt 0:01:18]} 13. e5 {[%emt 0:02:15]} d5 {[%emt 0:00:43]} 14. Kb1 {[%emt 0:02:24]} Ra7 {[%emt 0:07:52]} 15. Rf1 {[%emt 0:06:16]} (15. g4 $11) 15... Rb7 $15 {[%emt 0:02:57]} 16. g4 {[%emt 0:00:43]} e6 {[%emt 0:02:30] Prevents f5.} (16... Nd7 $1 $11) 17. Bd3 {[%emt 0:02:38]} (17. Ne4 $5 {[%cal Re4d6]} Qxd2 18. Nd6+ Kd7 19. Bxd2 $14) 17... c5 {[%emt 0:08:45] [#]} 18. Ne4 $1 {[%emt 0:13:35]} Qxd2 {[%emt 0:02:26]} 19. Nd6+ {[%emt 0:00:05]} Kd7 {[%emt 0:02:34]} 20. Bxd2 {[%emt 0:00:10]} Rh2 $2 {[%emt 0:08:08][%mdl 8192]} (20... cxd4 $11 {and Black is okay.} 21. Nxf7 Nc6) 21. Nf3 $18 {[%emt 0:01:51]} Rg2 {[%emt 0:00:16]} 22. dxc5 {[%emt 0:06:00] Rh1 is the strong threat.} (22. Nxb7 Bxb7 23. Rh1 (23. dxc5 Rxg4 24. Ng5 Ke8 $11) 23... Ke8 $14) 22... Rc7 {[%emt 0:00:47]} 23. b4 {[%emt 0:00:54]} ({Don't play} 23. Nxf7 Rxg4 24. Rh1 Ke7 $18) 23... Rxg4 {[%emt 0:00:28]} 24. Nxf7 {[%emt 0:05:16] Pair of Knights!} Nc6 {[%emt 0:03:24]} 25. Rh1 {[%emt 0:01:26][%mdl 1024] White has strong compensation.} Ke8 {[%emt 0:05:50][%cal Bd7e8,Be8f8,Bf8g7,Bg7f7][%mdl 32]} 26. Nd6+ {[%emt 0:02:41]} Kf8 {[%emt 0:00:21]} 27. Ng5 {[%emt 0:00:22]} Ne7 $2 {[%emt 0:04:24]} (27... Rg2) 28. Rh7 $2 {[%emt 0:04:20]} (28. Nh7+ Kg8 29. Ne8) 28... Bd7 {[%emt 0:01:41] [#]} 29. Rxg7 $1 {[%emt 0:04:41][%mdl 512] Rf7+ would kill now. The board is on fire.} Kxg7 {[%emt 0:01:21] [#]} (29... Rg1+ 30. Bc1) 30. Nxe6+ $1 {[%emt 0:00:09][%mdl 512]} Bxe6 $11 {[%emt 0:01:16]} 31. Ne8+ {[%emt 0:00:04]} Kf7 {[%emt 0:00:27]} 32. Nxc7 {[%emt 0:00:06]} Bc8 {[%emt 0:01:03] [#]} (32... d4 $11) 33. a4 {[%emt 0:00:13] White is more active.} (33. e6+ $1 $16 Bxe6 34. Nxa6) 33... bxa4 {[%emt 0:04:15]} 34. Nxa6 $2 {[%emt 0:01:27] [#]} (34. Kb2 $11) 34... Rg2 $2 {[%emt 0:01:15]} ({Better is} 34... Rg1+ $1 $19 35. Bc1 Bxa6 36. Bxa6 a3) 35. Bc3 $16 {[%emt 0:03:20]} Rf2 {[%emt 0:00:29]} (35... g5 $16) 36. b5 $18 {[%emt 0:00:21]} Rxf4 {[%emt 0:00:52]} 37. Nb4 {[%emt 0:01:01]} ({White should play} 37. Nc7 $18) 37... Be6 $2 {[%emt 0:01:54][%mdl 8192]} (37... g5 $16) 38. b6 {[%emt 0:00:55] Hoping for b7.} Rh4 $2 {[%emt 0:02:39]} (38... Bc8 39. Bb5 Bb7) 39. b7 {[%emt 0:02:30] White is clearly winning.} a3 {[%emt 0:02:36]} 40. b8=Q {[%emt 0:03:03] And now Bb5 would win.} Rh1+ {[%emt 0:00:56]} 41. Ka2 {[%emt 0:00:04] aiming for Qc7.} d4+ {[%emt 0:00:06]} 42. Kxa3 {[%emt 0:00:07][%cal Ob8c7]} dxc3 {[%emt 0:00:18]} 43. Ka4 {[%emt 0:00:23]} Ra1+ {[%emt 0:01:10]} 44. Kb5 {[%emt 0:00:07]} Bd7+ {[%emt 0:01:36]} 45. Kc4 {[%emt 0:00:39] Threatens to win with Qh8.} Ra3 {[%emt 0:00:52]} 46. c6 {[%emt 0:02:11]} Be6+ {[%emt 0:00:47]} 47. Kd4 {[%emt 0:00:10] Black must now prevent Qh8.} Ra4 {[%emt 0:00:22]} 48. Be4 {[%emt 0:01:35] Weighted Error Value: White=0.51/Black=0.66} 1-0

[Event "87th Spanish Championship 2022"]
[Site "Linares"]
[Date "2022.08.16"]
[Round "7.36"]
[White "Donate Moreno, Silvia"]
[Black "Bermudez Ureba, Juan Diego"]
[Result "1/2-1/2"]
[ECO "B56"]
[WhiteElo "1962"]
[BlackElo "2198"]
[Annotator "TA"]
[PlyCount "84"]
[EventDate "2022.08.11"]
[EventType "swiss"]
[EventCountry "ESP"]
[SourceTitle "playchess.com"]
[Source "ChessBase"]
[SourceQuality "1"]
[TimeControl "5400+30"]

{[%evp 19,84,-33,-16,-58,0,0,2,0,39,9,62,16,14,-2,-8,-8,-5,-31,-18,-24,-2,-46,-50,-45,-44,-92,-72,-70,-79,-78,-100,-235,-154,-165,-158,-174,-175,-214,-62,-77,-76,-121,-72,-70,-75,-78,-52,-62,-43,-68,-4,-14,-23,-39,-39,-83,0,0,0,-11,0,0,0,-64,0,-45,0]} 1. e4 {[%emt 0:00:03]} c5 {[%emt 0:00:10]} 2. Nf3 {[%emt 0:00:09]} d6 {[%emt 0:00:03]} 3. d4 {[%emt 0:00:05]} cxd4 {[%emt 0:00:04]} 4. Nxd4 {[%emt 0:00:06]} Nf6 {[%emt 0:00:02]} 5. Nc3 {[%emt 0:00:46]} Nc6 {[%emt 0:00:04]} 6. Be3 {[%emt 0:00:14]} Ng4 {[%emt 0:01:42]} 7. Bg5 {[%emt 0:01:36]} h6 {[%emt 0:00:07]} 8. Bh4 {[%emt 0:00:34]} g5 {[%emt 0:00:04]} 9. Bg3 {[%emt 0:00:11]} Bg7 {[%emt 0:00:06]} 10. Nxc6 {[%emt 0:01:54]} bxc6 {[%emt 0:01:50]} 11. Be2 {[%emt 0:02:00] B56: Classical Sicilian: Unusual Lines.} Bxc3+ {[%emt 0:00:55]} (11... h5 $15 12. O-O Rb8 13. Bxg4 hxg4) 12. bxc3 $11 {[%emt 0:00:09]} Qa5 {[%emt 0:18:14]} 13. Qd4 {[%emt 0:04:44] The position is equal.} (13. Bxg4 $2 Qxc3+ 14. Kf1 Bxg4 $17) 13... e5 {[%emt 0:17:49]} 14. Qb4 {[%emt 0:00:31] [#]} Qc7 $146 {[%emt 0:01:00]} (14... Qxb4 $11 15. cxb4 Nf6) ({Predecessor:} 14... Qxb4 15. cxb4 Nf6 16. f3 Nh5 17. Bf2 Nf4 18. g3 Nxe2 19. Kxe2 Be6 20. Rhd1 Ke7 {1-0 (61) Navarrete Delgado,S (2210)-Staessens,G Vlissingen 2006}) 15. Rd1 {[%emt 0:02:55]} (15. h4 $1 $14) 15... c5 {[%emt 0:00:41]} 16. Qa4+ {[%emt 0:00:42]} (16. Qa3 $5 {[%cal Rh2h4]}) 16... Ke7 {[%emt 0:01:10]} 17. O-O {[%emt 0:03:19]} Rb8 {[%emt 0:03:19]} 18. Rb1 {[%emt 0:03:27]} Bd7 {[%emt 0:03:06]} 19. Qa3 {[%emt 0:01:02]} a5 {[%emt 0:15:12]} 20. Bxg4 {[%emt 0:06:24]} Bxg4 {[%emt 0:00:05]} 21. f3 {[%emt 0:00:41]} Be6 {[%emt 0:01:49]} 22. Qa4 {[%emt 0:04:47]} (22. h4 $15) 22... Rb7 {[%emt 0:03:42]} 23. Rxb7 {[%emt 0:10:12]} Qxb7 {[%emt 0:00:59]} 24. Rd1 {[%emt 0:00:42]} Rb8 {[%emt 0:00:50]} 25. Qa3 {[%emt 0:02:09]} ({Avoid the trap} 25. Qxa5 $2 Ra8 26. Qxa8 Qxa8 $19) (25. c4 $17) 25... Qb5 {[%emt 0:00:55]} 26. Qc1 {[%emt 0:01:34]} f6 {[%emt 0:04:39]} 27. Qd2 {[%emt 0:01:02]} Rb6 {[%emt 0:00:05]} 28. h4 {[%emt 0:00:45]} Qe8 $2 {[%emt 0:01:15]} (28... Bxa2 $19 {Strongly threatening ...a4.} 29. Qc1 Qb1 30. hxg5 hxg5) 29. hxg5 {[%emt 0:00:37]} hxg5 {[%emt 0:00:09]} 30. c4 {[%emt 0:01:06]} Qa8 {[%emt 0:01:57]} (30... Qa4 $142 31. Bf2 Qb4) 31. Bf2 $17 {[%emt 0:06:18]} a4 {[%emt 0:03:16]} ({Much weaker is} 31... Bxc4 32. Bxc5 $1 Rc6 33. Bxd6+ Kf7 34. Bc5 $11) 32. a3 {[%emt 0:01:13]} Qe8 {[%emt 0:02:14]} ({But not} 32... Bxc4 {[#]} 33. Bxc5 $1 Rc6 34. Bxd6+ Kf7 35. Bb4 $14) 33. Qa5 {[%emt 0:01:43]} Qc6 {[%emt 0:01:33]} 34. Qc3 {[%emt 0:02:03]} Kd7 {[%emt 0:01:13]} (34... Qb7 $15) 35. Be3 {[%emt 0:02:58]} (35. Qa5 $5 {[%cal Rf2c5]} Ke7 36. g4 $15) 35... Rb8 {[%emt 0:02:25]} 36. Qa5 {[%emt 0:03:01] Black must now prevent Bxc5.} Ke7 {[%emt 0:00:58]} 37. Qc3 {[%emt 0:01:41]} Rb7 {[%emt 0:02:13]} ({Black should play} 37... g4 $17) 38. Kf2 $11 {[%emt 0:02:05]} Rb8 {[%emt 0:04:17]} 39. Rh1 {[%emt 0:01:51]} Qa6 {[%emt 0:01:35]} 40. Rh7+ {[%emt 0:01:00]} Bf7 {[%emt 0:00:12]} 41. g3 {[%emt 0:02:48]} (41. g4 $11) 41... Rg8 {[%emt 0:01:19]} (41... Qa8 $1 $15) 42. Bd2 {[%emt 0:03:17]} Rb8 {[%emt 0:01:45] Whites escaped into a draw.  Weighted Error Value: White=0.25 (precise) /Black=0.30} 1/2-1/2